fUST/lending_fUST_20260114
["ID","MTS","AMOUNT","RATE_DAILY","PERIOD"]
[401789756,1768375867439,-500.0,0.00024658,2]
[401789757,1768375867450,-500.0,0.00024679,2]
[401789758,1768375867459,-604.59908238,0.000247,2]
[401789759,1768375867470,-1300.0,0.00024726,2]
[401789760,1768375867481,-500.0,0.00024737,2]
[401789761,1768375867491,-1300.0,0.00024741,2]
[401789762,1768375867502,-16835.94711559,0.00024774,2]
[401789763,1768375867512,-500.0,0.0002478,2]
[401789764,1768375867522,-500.0,0.00024795,2]
[401789765,1768375867532,-150.95,0.000248,2]
[401789766,1768375867543,-600.0,0.00024805,2]
[401789767,1768375867554,-1300.0,0.00024824,2]
[401789768,1768375867564,-500.0,0.0002485,2]
[401789769,1768375867652,-1300.0,0.00024855,2]
[401789770,1768375867662,-1300.0,0.00024857,2]
[401789771,1768375867671,-600.0,0.0002487,2]
[401789772,1768375867681,-214.89401488,0.00024877,14]
[401789773,1768375867690,-600.0,0.00024899,2]
[401789774,1768375867700,-653058.728757,0.000249,2]
[401789775,1768375867710,-1300.0,0.0002493,2]
[401789776,1768375867719,-500.0,0.00024932,2]
[401789777,1768375867729,-500.0,0.00024937,2]
[401789778,1768375867738,-1000.0,0.00024941,10]
[401789779,1768375867748,-1000.0,0.00024941,10]
[401789780,1768375867757,-579.0,0.00024941,10]
[401789781,1768375867768,-1300.0,0.00024976,2]
[401789782,1768375867777,-1300.0,0.00024978,2]
[401789783,1768375867787,-1209.821329,0.0002498,5]
[401789784,1768375867796,-500.0,0.00024985,2]
[401789785,1768375867806,-600.0,0.00024985,2]
[401789786,1768375867815,-6134.0,0.00025,2]
[401789787,1768375867824,-1085.99401235,0.00025,2]
[401789788,1768375867834,-2675.89806204,0.00025,2]
[401789789,1768375867843,-90000.0,0.00025,2]
[401789790,1768375867852,-651.16,0.00025,2]
[401789791,1768375867862,-700.0,0.00025,2]
[401789792,1768375867872,-200.0,0.00025,17]
[401789793,1768375867881,-10364.0,0.00025,2]
[401789794,1768375867891,-500.0,0.00025,2]
[401789795,1768375867900,-2440.66196631,0.00025,2]
[401789796,1768375867910,-1041.66666667,0.00025,7]
[401789797,1768375867920,-8781.6,0.00025,15]
[401789798,1768375867930,-2011.79624984,0.00025,2]
[401789799,1768375867939,-40340.44,0.00025,2]
[401789800,1768375867949,-253.24,0.00025,7]
[401789801,1768375867959,-267.88,0.00025,7]
[401789802,1768375867969,-1000.0,0.00025,5]
[401789803,1768375867978,-160.03118063,0.00025,2]
[401789804,1768375867987,-1019.0,0.00025,2]
[401789805,1768375867997,-2000.0,0.00025,7]
[401789806,1768375868007,-782.85006975,0.00025031,7]
[401789807,1768375868016,-500.0,0.00025069,2]
[401789808,1768375868025,-1827.91578915,0.00025077,7]
[401789809,1768375868034,-896.0966357,0.00025088,7]
[401789810,1768375868043,-500.0,0.00025093,7]
[401789811,1768375868052,-500.0,0.00025099,7]
[401789812,1768375868062,-155.80997937,0.00025185,5]
[401789813,1768375868071,-150.15,0.000252,2]
[401789814,1768375868081,-151.3,0.000252,2]
[401789815,1768375868091,-500.0,0.000252,2]
[401789816,1768375868100,-580.55868078,0.000252,5]
[401789817,1768375868110,-4030.44,0.000252,14]
[401789818,1768375868119,-250.0,0.00025205,2]
[401789819,1768375868129,-1186.74681137,0.00025205,2]
[401789820,1768375868140,-1250.0,0.00025205,2]
[401789821,1768375868150,-500.0,0.00025206,2]
[401789822,1768375868160,-14150.53090947,0.00025216,2]
[401789823,1768375868170,-155.06,0.000253,2]
[401789824,1768375868180,-693.510903,0.00025342,2]
[401789825,1768375868189,-500.0,0.00025343,2]
[401789826,1768375868199,-2113.56,0.000254,7]
[401789827,1768375868210,-197.29525737,0.0002541,2]
[401789828,1768375868220,-900.0,0.00025469,3]
[401789829,1768375868229,-500.0,0.0002548,2]
[401789830,1768375868239,-651.16,0.000255,2]
[401789831,1768375868250,-1000.0,0.000255,2]
[401789832,1768375868263,-2000.0,0.000255,7]
[401789833,1768375868273,-500.0,0.00025617,2]
[401789834,1768375868282,-350.0,0.00025753,2]
[401789835,1768375868292,-1350.0,0.00025753,2]
[401789836,1768375868303,-500.0,0.00025754,2]
[401789837,1768375868314,-1041.66666667,0.000258,7]
[401789838,1768375868325,-500.0,0.00025838,7]
[401789839,1768375868337,-18780.42235644,0.00025839,2]
[401789840,1768375868346,-500.0,0.00025891,2]
[401789841,1768375868356,-150.15,0.000259,2]
[401789842,1768375868366,-151.3,0.000259,2]
[401789843,1768375868375,-151.21623891,0.00025999,5]
[401789844,1768375868386,-530.07448488,0.00026,2]
[401789845,1768375868396,-19900.0,0.00026,2]
[401789846,1768375868406,-161.0,0.00026,5]
[401789847,1768375868415,-651.16,0.00026,2]
[401789848,1768375868425,-700.0,0.00026,2]
[401789849,1768375868434,-300.0,0.00026,20]
[401789850,1768375868444,-2000.0,0.00026,4]
[401789851,1768375868454,-6803.24817253,0.00026,10]
[401789852,1768375868463,-370.45004284,0.00026,10]
[401789853,1768375868472,-134114.31937138,0.00026,30]
[401789854,1768375868482,-1041.66666667,0.00026,30]
[401789855,1768375868492,-1019.0,0.00026,2]
[401789856,1768375868501,-2000.0,0.00026,7]
[401789857,1768375868510,-2854.31,0.00026027,2]
[401789858,1768375868520,-500.0,0.00026028,2]
[401789859,1768375868529,-629.0,0.00026159,2]
[401789860,1768375868538,-1367.0,0.00026159,2]
[401789861,1768375868547,-417.0,0.00026159,2]
[401789862,1768375868558,-417.0,0.00026159,2]
[401789863,1768375868567,-715.0,0.00026159,2]
[401789864,1768375868577,-178.0,0.00026159,2]
[401789865,1768375868586,-194.72738073,0.0002616,2]
[401789866,1768375868595,-500.0,0.00026165,2]
[401789867,1768375868605,-150.95,0.000262,2]
[401789868,1768375868614,-40340.44,0.000262,2]
[401789869,1768375868624,-267.88,0.000262,7]
[401789870,1768375868633,-253.24,0.000262,7]
[401789871,1768375868642,-167.76,0.000262,7]
[401789872,1768375868652,-1642.70898799,0.00026245,2]
[401789873,1768375868660,-450.0,0.00026301,2]
[401789874,1768375868669,-1450.0,0.00026301,2]
[401789875,1768375868679,-500.0,0.00026302,2]
[401789876,1768375868688,-2113.56,0.000264,7]
[401789877,1768375868697,-500.0,0.00026439,2]
[401789878,1768375868706,-155.06,0.000265,2]
[401789879,1768375868716,-651.16,0.000265,2]
[401789880,1768375868725,-4030.44,0.000265,14]
[401789881,1768375868734,-2000.0,0.000265,7]
[401789882,1768375868744,-2174.0,0.00026563,2]
[401789883,1768375868754,-500.0,0.00026576,2]
[401789884,1768375868763,-150.15,0.000266,2]
[401789885,1768375868772,-151.3,0.000266,2]
[401789886,1768375868782,-38000.0,0.00026691,7]
[401789887,1768375868792,-38000.0,0.00026699,7]
[401789888,1768375868802,-38000.0,0.00026708,7]
[401789889,1768375868811,-212.25544066,0.00026709,7]
[401789890,1768375868820,-500.0,0.00026713,2]
[401789891,1768375868829,-1041.66666667,0.000268,30]
[401789892,1768375868839,-550.0,0.00026849,2]
[401789893,1768375868848,-1550.93699331,0.00026849,2]
[401789894,1768375868858,-500.0,0.0002685,2]
[401789895,1768375868867,-500.0,0.00026987,2]
[401789896,1768375868876,-700.0,0.00027,2]
[401789897,1768375868886,-1019.0,0.00027,2]
[401789898,1768375868900,-2000.0,0.00027,7]
[401789899,1768375868909,-195.0,0.00027068,14]
[401789900,1768375868919,-651.16,0.000271,2]
[401789901,1768375868928,-500.0,0.00027124,2]
[401789902,1768375868937,-500.0,0.000272,2]
[401789903,1768375868947,-355.01455049,0.00027261,2]
[401789904,1768375868956,-150.15,0.000273,2]
[401789905,1768375868966,-151.3,0.000273,2]
[401789906,1768375868975,-180.95703962,0.00027397,3]
[401789907,1768375868984,-650.0,0.00027397,5]
[401789908,1768375868993,-300.0,0.00027397,2]
[401789909,1768375869002,-300.0,0.00027397,2]
[401789910,1768375869011,-300.0,0.00027397,2]
[401789911,1768375869020,-300.0,0.00027397,2]
[401789912,1768375869029,-300.0,0.00027397,2]
[401789913,1768375869038,-300.0,0.00027397,2]
[401789914,1768375869048,-300.0,0.00027397,2]
[401789915,1768375869057,-300.0,0.00027397,2]
[401789916,1768375869066,-300.0,0.00027397,2]
[401789917,1768375869075,-300.0,0.00027397,2]
[401789918,1768375869084,-300.0,0.00027397,2]
[401789919,1768375869094,-300.0,0.00027397,2]
[401789920,1768375869103,-300.0,0.00027397,2]
[401789921,1768375869112,-300.0,0.00027397,2]
[401789922,1768375869121,-300.0,0.00027397,2]
[401789923,1768375869131,-300.0,0.00027397,2]
[401789924,1768375869140,-300.0,0.00027397,2]
[401789925,1768375869149,-300.0,0.00027397,2]
[401789926,1768375869159,-300.0,0.00027397,2]
[401789927,1768375869247,-300.0,0.00027397,2]
[401789928,1768375869260,-300.0,0.00027397,2]
[401789929,1768375869270,-300.0,0.00027397,2]
[401789930,1768375869280,-300.0,0.00027397,2]
[401789931,1768375869289,-300.0,0.00027397,2]
[401789932,1768375869299,-300.0,0.00027397,2]
[401789933,1768375869308,-300.0,0.00027397,2]
[401789934,1768375869318,-300.0,0.00027397,2]
[401789935,1768375869330,-300.0,0.00027397,2]
[401789936,1768375869340,-300.0,0.00027397,2]
[401789937,1768375869350,-300.0,0.00027397,2]
[401789938,1768375869359,-300.0,0.00027397,2]
[401789939,1768375869369,-300.0,0.00027397,2]
[401789940,1768375869378,-300.0,0.00027397,2]
[401789941,1768375869387,-300.0,0.00027397,2]
[401789942,1768375869397,-300.0,0.00027397,2]
[401789943,1768375869406,-300.0,0.00027397,2]
[401789944,1768375869415,-300.0,0.00027397,2]
[401789945,1768375869425,-300.0,0.00027397,2]
[401789946,1768375869434,-300.0,0.00027397,2]
[401789947,1768375869444,-300.0,0.00027397,2]
[401789948,1768375869454,-300.0,0.00027397,2]
[401789949,1768375869465,-697.474609,0.00027397,3]
[401789950,1768375869474,-697.474609,0.00027397,3]
[401789951,1768375869486,-697.474609,0.00027397,3]
[401789952,1768375869497,-697.474609,0.00027397,3]
[401789953,1768375869506,-697.474609,0.00027397,3]
[401789954,1768375869516,-697.474609,0.00027397,3]
[401789955,1768375869526,-697.474609,0.00027397,3]
[401789956,1768375869536,-697.474609,0.00027397,3]
[401789957,1768375869545,-697.474609,0.00027397,3]
[401789958,1768375869555,-697.474609,0.00027397,3]
[401789959,1768375869564,-697.474609,0.00027397,3]
[401789960,1768375869573,-697.474609,0.00027397,3]
[401789961,1768375869583,-697.474609,0.00027397,3]
[401789962,1768375869592,-697.474609,0.00027397,3]
[401789963,1768375869601,-697.474609,0.00027397,3]
[401789964,1768375869611,-697.474609,0.00027397,3]
[401789965,1768375869620,-697.474609,0.00027397,3]
[401789966,1768375869629,-697.474609,0.00027397,3]
[401789967,1768375869639,-697.474609,0.00027397,3]
[401789968,1768375869648,-697.474614,0.00027397,3]
[401789969,1768375869657,-156.87039,0.00027397,7]
[401789970,1768375869667,-157.45506808,0.00027397,5]
[401789971,1768375869676,-500.0,0.00027397,5]
[401789972,1768375869685,-515.68473116,0.00027397,5]
[401789973,1768375869694,-1000.0,0.00027435,30]
[401789974,1768375869703,-1000.0,0.00027435,30]
[401789975,1768375869712,-1000.0,0.00027435,30]
[401789976,1768375869722,-45973.4900653,0.000275,2]
[401789977,1768375869731,-150.95,0.000275,2]
[401789978,1768375869741,-2000.0,0.000275,7]
[401789979,1768375869750,-651.16,0.000276,2]
[401789980,1768375869759,-1041.66666667,0.000276,30]
[401789981,1768375869768,-800.0,0.00027606,2]
[401789982,1768375869777,-800.0,0.00027608,2]
[401789983,1768375869786,-2854.31,0.00027671,4]
[401789984,1768375869794,-155.06,0.000277,2]
[401789985,1768375869803,-1000.0,0.00027777,5]
[401789986,1768375869813,-20023.10367649,0.0002787,7]
[401789987,1768375869822,-750.0,0.00027945,5]
[401789988,1768375869831,-1000.0,0.00027945,5]
[401789989,1768375869840,-250.0,0.00027945,5]
[401789990,1768375869850,-250.0,0.00027945,5]
[401789991,1768375869859,-14150.53090947,0.00027984,2]
[401789992,1768375869869,-378.0,0.00028,8]
[401789993,1768375869882,-15332.32461397,0.00028,2]
[401789994,1768375869891,-150.15,0.00028,2]
[401789995,1768375869900,-700.0,0.00028,2]
[401789996,1768375869909,-151.3,0.00028,2]
[401789997,1768375869919,-1019.0,0.00028,2]
[401789998,1768375869929,-1041.66666667,0.00028,3]
[401789999,1768375869938,-2000.0,0.00028,7]
[401790000,1768375869947,-500.0,0.0002803,14]
[401790001,1768375869956,-651.16,0.000281,2]
[401790002,1768375869965,-1763.89243793,0.00028245,2]
[401790003,1768375869974,-850.0,0.00028493,5]
[401790004,1768375869983,-1349.80836073,0.00028493,5]
[401790005,1768375869993,-350.0,0.00028493,5]
[401790006,1768375870003,-350.0,0.00028493,5]
[401790007,1768375870012,-773.25,0.000285,5]
[401790008,1768375870020,-298584.86455573,0.000285,7]
[401790009,1768375870029,-2000.0,0.000285,7]
[401790010,1768375870038,-651.16,0.000286,2]
[401790011,1768375870047,-150.15,0.000287,2]
[401790012,1768375870056,-151.3,0.000287,2]
[401790013,1768375870064,-4000.0,0.0002876,5]
[401790014,1768375870073,-19150.53958078,0.0002876,2]
[401790015,1768375870082,-693.510903,0.00028767,60]
[401790016,1768375870091,-150.95,0.000288,2]
[401790017,1768375870100,-260751.85154235,0.000288,10]
[401790018,1768375870843,-3e-08,0.0001027,2]
[401790019,1768375911973,-10000.01,0.0001027,2]
[401790020,1768375912592,-554.0638475,0.0001027,2]
[401790021,1768375918152,-10000.01,0.0001027,2]
[401790022,1768375922073,-500.0,0.0001027,2]
[401790023,1768375925444,-214.0,0.00010269,2]
[401790024,1768375925471,-19.89628774,0.0001027,2]
[401790025,1768375931526,-301.85311576,0.0001027,2]
[401790026,1768375933478,-255.75213655,0.0001027,2]
[401790027,1768375935274,159.52,8.292e-05,2]
[401790028,1768375936968,-300.0,0.00010269,2]
[401790029,1768375939762,-162.62594836,0.00010269,2]
[401790030,1768375942413,-58.03417255,0.00010269,2]
[401790031,1768375942435,-205.77445985,0.0001027,2]
[401790032,1768375946205,-374.95654188,0.0001027,2]
[401790033,1768375948379,-222.25473987,0.0001027,2]
[401790034,1768375950595,-479.82470118,0.0001027,2]
[401790035,1768375952218,-296.61904294,0.0001027,2]
[401790036,1768375954529,-613.42999997,0.0001027,2]
[401790037,1768375956675,-249.67327297,0.0001027,2]
[401790054,1768375987087,-191.91961566,0.0001017,2]
[401790058,1768376001558,-310.26600713,0.0001017,2]
[401790059,1768376003184,-329.0842742,0.0001017,2]
[401790060,1768376007105,-151.79647789,0.0001017,2]
[401790061,1768376008636,-318.28435848,0.0001,2]
[401790062,1768376011332,-240.97468499,0.0001,2]
[401790064,1768376013849,-315.29737132,0.0001,2]
[401790065,1768376015518,-224.35942418,0.0001,2]
[401790066,1768376018188,-330.0582376,0.0001,2]
[401790067,1768376019625,-253.24859106,0.0001,2]
[401790068,1768376023518,-163.04901972,0.0001,2]
[401790070,1768376025208,-317.98085139,0.0001,2]
[401790071,1768376030551,-259.93105029,0.0001,2]
[401790072,1768376033766,-169.60906997,0.0001,2]
[401790073,1768376035997,-475.99742899,0.0001,2]
[401790074,1768376039206,-427.28699744,0.0001,2]
[401790075,1768376041301,-180.32183878,0.0001,2]
[401790076,1768376043981,-331.48209646,0.0001,2]
[401790077,1768376046153,-221.57,0.0001,2]
[401790078,1768376047691,-328.24929525,0.0001,2]
[401790079,1768376049203,-334.78082678,0.0001,2]
[401790080,1768376049228,-145.83651529,0.00010169,2]
[401790081,1768376051258,-154.16348471,0.00010169,2]
[401790082,1768376051289,-144.14266843,0.0001017,2]
[401790083,1768376054944,-167.7802343,0.0001017,2]
[401790084,1768376056972,-296.88926407,0.0001017,2]
[401790085,1768376059108,-9840.49,0.0001017,2]
[401790086,1768376060179,-344.52996672,0.0001017,2]
[401790087,1768376061993,-10000.01,0.0001017,2]
[401790088,1768376067217,-150.40566175,0.0001016,2]
[401790089,1768376067246,-1.79021688,0.0001017,2]
[401790090,1768376070608,-225.87514555,0.0001017,2]
[401790091,1768376073312,-260.75810347,0.0001017,2]
[401790092,1768376074925,-259.99429441,0.0001017,2]
[401790094,1768376079965,-173.51716562,0.0001017,2]
[401790095,1768376082614,-207.41387787,0.0001017,2]
[401790096,1768376086679,-340.27734342,0.0001017,2]
[401790097,1768376089640,-464.21349406,0.0001017,2]
[401790098,1768376111099,-162.0,0.00010169,2]
[401790099,1768376111134,-300.0,0.00010169,2]
[401790100,1768376111169,-300.0,0.00010169,2]
[401790101,1768376111208,-1200.0,0.00010169,2]
[401790102,1768376111365,-6076.01,0.0001017,2]
[401790103,1768376111460,-10000.01,0.0001017,2]
[401790104,1768376117181,-10000.01,0.0001017,2]
[401790105,1768376117225,-10000.01,0.0001017,2]
[401790108,1768376212151,-1011.02104263,0.0001007,2]
[401790109,1768376212185,-300.0,0.00010169,2]
[401790110,1768376212247,-7377.96791474,0.0001017,2]
[401790111,1768376212516,-10000.01,0.0001017,2]
[401790112,1768376212653,-10000.01,0.0001017,2]
[401790113,1768376212788,-10000.01,0.0001017,2]
[401790114,1768376221121,-10000.01,0.0001017,2]
[401790115,1768376221267,-10000.01,0.0001017,2]
[401790116,1768376221435,-10000.01,0.0001017,2]
[401790117,1768376221568,-10000.01,0.0001017,2]
[401790118,1768376279941,204.12,6.993e-05,2]
[401790119,1768376316755,-207.63554956,0.0001007,2]
[401790120,1768376316784,-109.14016673,0.0001017,2]
[401790121,1768376331900,163.15,6.201e-05,2]
[401790122,1768376332308,217.54,6.47e-05,2]
[401790123,1768376332866,271.92,6.74e-05,2]
[401790124,1768376333168,326.3,7.009e-05,2]
[401790125,1768376333589,380.69,7.279e-05,2]
[401790126,1768376334037,435.07,7.549e-05,2]
[401790127,1768376334472,489.46,7.818e-05,2]
[401790128,1768376334886,543.84,8.088e-05,2]
[401790129,1768376346497,-198.33543308,0.00010169,2]
[401790130,1768376349729,-101.66456692,0.00010169,2]
[401790131,1768376349751,-56.20960216,0.00010169,2]
[401790132,1768376356957,-200.2296027,0.00010169,2]
[401790133,1768376359704,-43.56079514,0.00010169,2]
[401790134,1768376359732,-113.11549212,0.0001017,2]
[401790135,1768376362014,-222.14267006,0.0001017,2]
[401790136,1768376365244,-261.97235303,0.0001017,2]
[401790137,1768376368944,-268.44803052,0.0001017,2]
[401790138,1768376370548,-174.92844212,0.0001017,2]
[401790140,1768376373694,-203.20803785,0.0001017,2]
[401790141,1768376376533,-166.46654512,0.0001017,2]
[401790142,1768376379355,-178.51215727,0.0001017,2]
[401790143,1768376381629,-168.07811467,0.0001017,2]
[401790144,1768376383884,-283.55003313,0.0001017,2]
[401790145,1768376390599,-300.0,0.0001017,2]
[401790146,1768376402511,2116.0,5e-05,2]
[401790147,1768376402733,151.79,7.051e-05,2]
[401790148,1768376402871,2116.0,5.5e-05,2]
[401790149,1768376403158,182.15,7.333e-05,2]
[401790150,1768376403236,2116.0,6e-05,2]
[401790151,1768376403575,212.5,7.615e-05,2]
[401790152,1768376403986,73.48,7.897e-05,2]
[401790153,1768376404024,169.38,7.897e-05,2]
[401790154,1768376404476,2116.0,6.5e-05,2]
[401790155,1768376404528,273.22,8.179e-05,2]
[401790156,1768376404590,2116.0,7.1e-05,2]
[401790157,1768376404825,303.58,8.461e-05,2]
[401790158,1768376404911,2116.0,7.6e-05,2]
[401790159,1768376405217,2116.0,8.1e-05,2]
[401790160,1768376405537,789.83,8.6e-05,2]
[401790161,1768376405565,1326.17,8.6e-05,2]
[401790162,1768376405853,2116.0,9.1e-05,2]
[401790163,1768376406237,2116.0,9.6e-05,2]
[401790164,1768376414711,157.0,8.3e-07,2]
[401790165,1768376422097,-300.0,0.000101,2]
[401790166,1768376422219,2115.78,5e-05,2]
[401790167,1768376424189,-166.19165126,0.000101,2]
[401790168,1768376426517,-1649.80834874,0.000101,2]
[401790169,1768376426551,-300.0,0.00010169,2]
[401790170,1768376426586,-300.0,0.00010169,2]
[401790171,1768376426619,-300.0,0.00010169,2]
[401790172,1768376426656,-300.0,0.00010169,2]
[401790173,1768376426690,-1200.0,0.00010169,2]
[401790174,1768376426726,-562.0,0.00010169,2]
[401790175,1768376427601,-2994.43495378,0.0001017,2]
[401790176,1768376427644,-10000.01,0.0001017,2]
[401790177,1768376427678,-426.47224628,0.0001017,2]
[401790178,1768376427713,-10000.01,0.0001017,2]
[401790179,1768376427751,-10000.01,0.0001017,2]
[401790180,1768376427776,-10000.01,0.0001017,2]
[401790181,1768376427844,-10000.01,0.0001017,2]
[401790182,1768376429388,-10000.01,0.0001017,2]
[401790183,1768376429527,-10000.01,0.0001017,2]
[401790184,1768376429699,-10000.01,0.0001017,2]
[401790185,1768376432469,-10000.01,0.0001017,2]
[401790186,1768376432615,-10000.01,0.0001017,2]
[401790187,1768376432804,-10000.01,0.0001017,2]
[401790188,1768376432946,-10000.01,0.0001017,2]
[401790189,1768376433110,-10000.01,0.0001017,2]
[401790190,1768376433272,-10000.01,0.0001017,2]
[401790191,1768376433429,-10000.01,0.0001017,2]
[401790192,1768376452291,194.792,0.000288,120]
[401790193,1768376452971,475.0,0.000288,120]
[401790194,1768376453325,475.0,0.000288,120]
[401790195,1768376453648,475.0,0.000288,120]
[401790196,1768376454009,475.0,0.000288,120]
[401790197,1768376454317,475.0,0.000288,120]
[401790198,1768376454600,475.0,0.000288,120]
[401790199,1768376454962,475.0,0.000288,120]
[401790200,1768376455274,475.0,0.000288,120]
[401790201,1768376455338,-10000.01,0.0001017,2]
[401790202,1768376455624,475.0,0.000288,120]
[401790203,1768376456076,475.0,0.000288,120]
[401790204,1768376456254,475.0,0.000288,120]
[401790205,1768376456553,475.0,0.000288,120]
[401790206,1768376457255,475.0,0.000288,120]
[401790207,1768376461606,-196.51,0.0001017,2]
[401790208,1768376463147,-166.87320141,0.00010169,2]
[401790209,1768376465707,-133.12679859,0.00010169,2]
[401790210,1768376465739,-849.27320141,0.0001017,2]
[401790211,1768376468330,-371.27309417,0.0001017,2]
[401790212,1768376470375,-217.6,0.0001017,2]
[401790213,1768376470496,683.53,5.633e-05,2]
[401790214,1768376470935,1367.06,5.901e-05,2]
[401790215,1768376471305,2050.59,6.17e-05,2]
[401790216,1768376471721,2734.12,6.438e-05,2]
[401790217,1768376472397,3417.65,6.706e-05,2]
[401790218,1768376472643,4101.18,6.974e-05,2]
[401790219,1768376473202,2481.18,7.243e-05,2]
[401790220,1768376473233,2303.54,7.243e-05,2]
[401790221,1768376473802,5468.25,7.511e-05,2]
[401790222,1768376474041,2228.22,7.779e-05,2]
[401790223,1768376474073,3923.56,7.779e-05,2]
[401790224,1768376474454,6076.45,8.047e-05,2]
[401790225,1768376474487,758.86,8.047e-05,2]
[401790226,1768376503094,185.166,9.967e-05,2]
[401790227,1768376503156,178.25346145,9.967e-05,2]
[401790228,1768376518251,-364.46208464,0.00010169,2]
[401790229,1768376518283,-500.0,0.00010169,2]
[401790230,1768376518320,-500.0,0.00010169,2]
[401790231,1768376518354,-500.0,0.00010169,2]
[401790232,1768376518387,-500.0,0.00010169,2]
[401790233,1768376518422,-500.0,0.00010169,2]
[401790234,1768376518462,-500.0,0.00010169,2]
[401790235,1768376518496,-500.0,0.00010169,2]
[401790236,1768376518532,-500.0,0.00010169,2]
[401790237,1768376518566,-500.0,0.00010169,2]
[401790238,1768376518863,-500.0,0.00010169,2]
[401790239,1768376518896,-500.0,0.00010169,2]
[401790240,1768376518932,-500.0,0.00010169,2]
[401790241,1768376518966,-500.0,0.00010169,2]
[401790242,1768376519000,-567.56557986,0.00010169,2]
[401790243,1768376519033,-500.0,0.00010169,2]
[401790244,1768376519068,-500.0,0.00010169,2]
[401790245,1768376519100,-492.84099496,0.00010169,2]
[401790246,1768376519134,-500.0,0.00010169,2]
[401790247,1768376519167,-379.19685036,0.00010169,2]
[401790248,1768376519281,-120.80314964,0.00010169,2]
[401790249,1768376519313,-500.0,0.00010169,2]
[401790250,1768376519345,-500.0,0.00010169,2]
[401790251,1768376519380,-500.0,0.00010169,2]
[401790252,1768376519411,-500.0,0.00010169,2]
[401790253,1768376519446,-500.0,0.00010169,2]
[401790254,1768376519481,-500.0,0.00010169,2]
[401790255,1768376519515,-500.0,0.00010169,2]
[401790256,1768376519547,-218.31769271,0.00010169,2]
[401790257,1768376519583,-500.0,0.00010169,2]
[401790258,1768376519620,-500.0,0.00010169,2]
[401790259,1768376519671,-500.0,0.00010169,2]
[401790260,1768376519704,-196.4015844,0.00010169,2]
[401790261,1768376519736,-500.0,0.00010169,2]
[401790262,1768376519772,-500.0,0.00010169,2]
[401790263,1768376519807,-500.0,0.00010169,2]
[401790264,1768376519839,-500.0,0.00010169,2]
[401790265,1768376519875,-500.0,0.00010169,2]
[401790266,1768376519908,-326.36749783,0.00010169,2]
[401790267,1768376519941,-500.0,0.00010169,2]
[401790268,1768376519976,-500.0,0.00010169,2]
[401790269,1768376520009,-454.47183554,0.00010169,2]
[401790270,1768376521227,-500.0,0.00010169,2]
[401790271,1768376521260,-45.52816446,0.00010169,2]
[401790272,1768376521297,-500.0,0.00010169,2]
[401790273,1768376521333,-500.0,0.00010169,2]
[401790274,1768376521371,-500.0,0.00010169,2]
[401790275,1768376521407,-500.0,0.00010169,2]
[401790276,1768376521440,-500.0,0.00010169,2]
[401790277,1768376521480,-500.0,0.00010169,2]
[401790278,1768376521518,-500.0,0.00010169,2]
[401790279,1768376521551,-500.0,0.00010169,2]
[401790280,1768376521587,-408.95367108,0.00010169,2]